[Event "Early-Titled-Tuesday-Blitz-April-23-2024"]
[Site "Chess.com"]
[Date "2024.04.23"]
[Round "11"]
[White "KogotBobra17"]
[Black "mbojan"]
[Result "0-1"]
[WhiteElo "2779"]
[BlackElo "2924"]
[TimeControl "180+1"]
[EndTime "10:12:09 PDT"]
[Termination "mbojan won by resignation"]

1. e4 {[%clk 0:03:00.9]} 1... a6 {[%clk 0:02:59.9]} 2. d4 {[%clk 0:02:58.3]}
2... e6 {[%clk 0:03:00.4]} 3. Nf3 {[%clk 0:02:53.4]} 3... d5 {[%clk 0:03:00.6]}
4. Bd3 {[%clk 0:02:50.8]} 4... dxe4 {[%clk 0:03:00.7]} 5. Bxe4 {[%clk
0:02:51.7]} 5... Nf6 {[%clk 0:03:01.4]} 6. Bd3 {[%clk 0:02:52.3]} 6... c5 {[%clk
0:03:02.1]} 7. O-O {[%clk 0:02:51.6]} 7... Nbd7 {[%clk 0:02:59.4]} 8. Bg5 {[%clk
0:02:49.1]} 8... cxd4 {[%clk 0:02:56.6]} 9. Nxd4 {[%clk 0:02:50]} 9... Bc5
{[%clk 0:02:56.7]} 10. c3 {[%clk 0:02:41.7]} 10... O-O {[%clk 0:02:54.4]} 11.
Nd2 {[%clk 0:02:39.7]} 11... Bxd4 {[%clk 0:02:50]} 12. cxd4 {[%clk 0:02:40.6]}
12... b6 {[%clk 0:02:48.2]} 13. Qe2 {[%clk 0:02:27.6]} 13... Bb7 {[%clk
0:02:47.4]} 14. Rac1 {[%clk 0:02:27.7]} 14... h6 {[%clk 0:02:41.8]} 15. Bh4
{[%clk 0:02:27.8]} 15... a5 {[%clk 0:02:36.8]} 16. Nc4 {[%clk 0:02:23.2]} 16...
Rc8 {[%clk 0:02:28.7]} 17. Ne5 {[%clk 0:02:22.8]} 17... Rxc1 {[%clk 0:02:18.6]}
18. Rxc1 {[%clk 0:02:22.5]} 18... Nxe5 {[%clk 0:02:13.2]} 19. dxe5 {[%clk
0:01:55.4]} 19... Qd5 {[%clk 0:02:13]} 20. f3 {[%clk 0:01:56]} 20... Nh5 {[%clk
0:02:10]} 21. Be4 {[%clk 0:01:45.3]} 21... Qd7 {[%clk 0:02:04]} 22. Bxb7 {[%clk
0:00:57.6]} 22... Qxb7 {[%clk 0:02:04.9]} 23. Qe3 {[%clk 0:00:58.4]} 23... g5
{[%clk 0:01:57.3]} 24. Bf2 {[%clk 0:00:54.4]} 24... Nf4 {[%clk 0:01:55.7]} 25.
h4 {[%clk 0:00:45.7]} 25... Rd8 {[%clk 0:01:45.4]} 26. Re1 {[%clk 0:00:32.3]}
26... b5 {[%clk 0:01:25.7]} 27. Bg3 {[%clk 0:00:20.9]} 27... Rd3 {[%clk
0:01:20.4]} 28. Qf2 {[%clk 0:00:21.6]} 28... Ng6 {[%clk 0:01:09]} 29. hxg5
{[%clk 0:00:20.9]} 29... hxg5 {[%clk 0:01:09.9]} 30. Kh2 {[%clk 0:00:13.1]}
30... Qd5 {[%clk 0:01:06.5]} 31. Re2 {[%clk 0:00:13.8]} 31... Kg7 {[%clk
0:01:06.4]} 32. a3 {[%clk 0:00:10.7]} 32... Rd4 {[%clk 0:01:06.1]} 33. Rc2
{[%clk 0:00:09.7]} 33... g4 {[%clk 0:01:05.2]} 34. fxg4 {[%clk 0:00:08.5]} 34...
Qd8 {[%clk 0:00:55.3]} 35. Rc8 {[%clk 0:00:03.5]} 35... Qxc8 {[%clk 0:00:49.7]}
36. Qxd4 {[%clk 0:00:03.8]} 36... Qc2 {[%clk 0:00:46.6]} 37. Be1 {[%clk
0:00:02]} 37... a4 {[%clk 0:00:45.4]} 38. Qb4 {[%clk 0:00:02.4]} 38... Qe2
{[%clk 0:00:44.7]} 39. Bg3 {[%clk 0:00:02.6]} 39... Kg8 {[%clk 0:00:38.8]} 40.
Qd4 {[%clk 0:00:03.2]} 40... Kh7 {[%clk 0:00:36.9]} 41. Qb4 {[%clk 0:00:02.7]}
41... Kg7 {[%clk 0:00:35]} 42. Qd4 {[%clk 0:00:03.3]} 42... Ne7 {[%clk
0:00:34.4]} 43. Qf4 {[%clk 0:00:03.7]} 43... Ng6 {[%clk 0:00:25.1]} 44. Qf6+
{[%clk 0:00:04.1]} 44... Kg8 {[%clk 0:00:25.2]} 45. Qd8+ {[%clk 0:00:04.5]}
45... Kh7 {[%clk 0:00:24.3]} 46. Qd4 {[%clk 0:00:04.9]} 46... Qc2 {[%clk
0:00:20.9]} 47. Qd7 {[%clk 0:00:04.7]} 47... Kg7 {[%clk 0:00:18.2]} 48. Qd4
{[%clk 0:00:05.3]} 48... Qc4 {[%clk 0:00:16.6]} 49. Qxc4 {[%clk 0:00:04.6]}
49... bxc4 {[%clk 0:00:17.5]} 50. Kg1 {[%clk 0:00:05.3]} 50... Ne7 {[%clk
0:00:16.2]} 51. Kf2 {[%clk 0:00:05.9]} 51... Nd5 {[%clk 0:00:17.1]} 52. Ke2
{[%clk 0:00:06.6]} 52... c3 {[%clk 0:00:16.1]} 53. bxc3 {[%clk 0:00:07.2]} 53...
Nxc3+ {[%clk 0:00:17]} 54. Kd3 {[%clk 0:00:07.5]} 54... Nb5 {[%clk 0:00:17.9]}
55. Kc4 {[%clk 0:00:03.4]} 55... Nxa3+ {[%clk 0:00:18.4]} 56. Kb4 {[%clk
0:00:04.2]} 56... Nc2+ {[%clk 0:00:18.8]} 57. Kxa4 {[%clk 0:00:05]} 57... Ne3
{[%clk 0:00:19.7]} 58. Kb3 {[%clk 0:00:05.3]} 58... Nxg4 {[%clk 0:00:19.5]} 59.
Bf4 {[%clk 0:00:04.7]} 59... Kg6 {[%clk 0:00:20.4]} 60. Kc4 {[%clk 0:00:04.9]}
60... Kf5 {[%clk 0:00:21.3]} 61. g3 {[%clk 0:00:05.8]} 61... Nxe5+ {[%clk
0:00:21.8]} 62. Kc5 {[%clk 0:00:06.7]} 62... Nd3+ {[%clk 0:00:21.5]} 63. Kd6
{[%clk 0:00:06.3]} 63... Nxf4 {[%clk 0:00:22.4]} 64. g4+ {[%clk 0:00:07.2]}
64... Kxg4 {[%clk 0:00:22.6]} 0-1

[Event "Early-Titled-Tuesday-Blitz-April-23-2024"]
[Site "Chess.com"]
[Date "2024.04.23"]
[Round "11"]
[White "Doublekk14"]
[Black "osielchesslover2011"]
[Result "1-0"]
[WhiteElo "2382"]
[BlackElo "2221"]
[TimeControl "180+1"]
[EndTime "10:12:13 PDT"]
[Termination "Doublekk14 won by checkmate"]

1. e4 {[%clk 0:03:00.9]} 1... c5 {[%clk 0:02:59.6]} 2. Nf3 {[%clk 0:03:00.9]}
2... d6 {[%clk 0:03:00.1]} 3. d4 {[%clk 0:02:59.1]} 3... cxd4 {[%clk 0:03:01]}
4. Nxd4 {[%clk 0:02:59.6]} 4... Nf6 {[%clk 0:03:01.4]} 5. Nc3 {[%clk 0:03:00]}
5... a6 {[%clk 0:03:01.4]} 6. Bg5 {[%clk 0:02:59.5]} 6... e6 {[%clk 0:03:01.5]}
7. f4 {[%clk 0:02:59.9]} 7... Be7 {[%clk 0:03:02]} 8. Qf3 {[%clk 0:02:59.5]}
8... Qc7 {[%clk 0:03:02.4]} 9. O-O-O {[%clk 0:02:59.4]} 9... Nbd7 {[%clk
0:03:02.9]} 10. Bxf6 {[%clk 0:02:44.6]} 10... Nxf6 {[%clk 0:03:00.7]} 11. Kb1
{[%clk 0:02:44.7]} 11... b5 {[%clk 0:03:00.6]} 12. e5 {[%clk 0:02:44.8]} 12...
Bb7 {[%clk 0:03:00.6]} 13. Bxb5+ {[%clk 0:02:45]} 13... axb5 {[%clk 0:02:55]}
14. Ndxb5 {[%clk 0:02:44.9]} 14... Qb6 {[%clk 0:02:51.1]} 15. Rxd6 {[%clk
0:02:40.7]} 15... Bxd6 {[%clk 0:02:33.6]} 16. Qxb7 {[%clk 0:02:40.3]} 16... Qxb7
{[%clk 0:02:28.5]} 17. Nxd6+ {[%clk 0:02:40.1]} 17... Kd7 {[%clk 0:02:27.6]} 18.
Nxb7 {[%clk 0:02:41]} 18... Ne8 {[%clk 0:02:13.8]} 19. Rd1+ {[%clk 0:02:35.3]}
19... Kc6 {[%clk 0:02:12.6]} 20. Nd8+ {[%clk 0:02:34]} 20... Kc5 {[%clk
0:02:07.8]} 21. Ne4+ {[%clk 0:02:31.6]} 21... Kb6 {[%clk 0:02:04.6]} 22. Rd7
{[%clk 0:02:06.1]} 22... Ra7 {[%clk 0:01:49.5]} 23. Rd3 {[%clk 0:01:21.4]} 23...
Rf8 {[%clk 0:01:42.1]} 24. c4 {[%clk 0:01:19.7]} 24... Kc7 {[%clk 0:01:35]} 25.
Ng5 {[%clk 0:01:03.8]} 25... Kc8 {[%clk 0:01:33.7]} 26. Nc6 {[%clk 0:00:51.6]}
26... Rc7 {[%clk 0:01:33.2]} 27. Na5 {[%clk 0:00:49.6]} 27... h6 {[%clk
0:01:32.6]} 28. Ne4 {[%clk 0:00:49.1]} 28... Rd7 {[%clk 0:01:29.5]} 29. Nd6+
{[%clk 0:00:44.7]} 29... Nxd6 {[%clk 0:01:29.5]} 30. exd6 {[%clk 0:00:44.9]}
30... Ra7 {[%clk 0:01:22.4]} 31. b4 {[%clk 0:00:44.4]} 31... Kd7 {[%clk
0:01:21.2]} 32. c5 {[%clk 0:00:44.2]} 32... Rb8 {[%clk 0:01:18]} 33. c6+ {[%clk
0:00:32.5]} 33... Ke8 {[%clk 0:01:17.7]} 34. d7+ {[%clk 0:00:20.2]} 34... Kd8
{[%clk 0:01:17.2]} 35. Nb7+ {[%clk 0:00:20]} 35... Raxb7 {[%clk 0:01:15.6]} 36.
cxb7 {[%clk 0:00:20.2]} 36... Rxb7 {[%clk 0:01:16.5]} 37. a3 {[%clk 0:00:18.6]}
37... Rb5 {[%clk 0:01:15.6]} 38. Kb2 {[%clk 0:00:18.1]} 38... Rf5 {[%clk
0:01:15.9]} 39. g3 {[%clk 0:00:18]} 39... Rh5 {[%clk 0:01:16.1]} 40. Rd2 {[%clk
0:00:18.2]} 40... g5 {[%clk 0:01:16.2]} 41. fxg5 {[%clk 0:00:17.5]} 41... hxg5
{[%clk 0:01:14.8]} 42. Kb3 {[%clk 0:00:16.4]} 42... f5 {[%clk 0:01:14.7]} 43. b5
{[%clk 0:00:16.2]} 43... f4 {[%clk 0:01:09.8]} 44. g4 {[%clk 0:00:12.6]} 44...
Rh3+ {[%clk 0:00:59.5]} 45. Kb4 {[%clk 0:00:12.3]} 45... Re3 {[%clk 0:00:38]}
46. b6 {[%clk 0:00:12.3]} 46... Re1 {[%clk 0:00:36.9]} 47. a4 {[%clk 0:00:08.1]}
47... Rb1+ {[%clk 0:00:33.7]} 48. Kc5 {[%clk 0:00:08.2]} 48... e5 {[%clk
0:00:33.4]} 49. a5 {[%clk 0:00:08]} 49... e4 {[%clk 0:00:32.7]} 50. a6 {[%clk
0:00:06.3]} 50... e3 {[%clk 0:00:32.9]} 51. a7 {[%clk 0:00:06.2]} 51... Ra1
{[%clk 0:00:33.1]} 52. b7 {[%clk 0:00:06.4]} 52... Rc1+ {[%clk 0:00:33.2]} 53.
Kd6 {[%clk 0:00:06]} 53... Rc6+ {[%clk 0:00:30.1]} 54. Kxc6 {[%clk 0:00:05.8]}
54... exd2 {[%clk 0:00:28.5]} 55. b8=Q+ {[%clk 0:00:05.6]} 55... Ke7 {[%clk
0:00:29.4]} 56. Qe8+ {[%clk 0:00:06.4]} 56... Kf6 {[%clk 0:00:29.8]} 57. d8=Q+
{[%clk 0:00:06.9]} 57... Kg7 {[%clk 0:00:30.7]} 58. Qxd2 {[%clk 0:00:07.7]}
58... f3 {[%clk 0:00:30.7]} 59. Qd6 {[%clk 0:00:04.9]} 59... f2 {[%clk
0:00:29.9]} 60. Qee7+ {[%clk 0:00:05.8]} 60... Kg8 {[%clk 0:00:29.8]} 61. Qdd8#
{[%clk 0:00:06.7]} 1-0

[Event "Early-Titled-Tuesday-Blitz-April-23-2024"]
[Site "Chess.com"]
[Date "2024.04.23"]
[Round "11"]
[White "gpsji27"]
[Black "JaackCamel"]
[Result "0-1"]
[WhiteElo "2302"]
[BlackElo "2218"]
[TimeControl "180+1"]
[EndTime "10:12:14 PDT"]
[Termination "JaackCamel won by resignation"]

1. d4 {[%clk 0:02:00.5]} 1... d5 {[%clk 0:02:57.1]} 2. Nf3 {[%clk 0:02:01.4]}
2... e6 {[%clk 0:02:53.4]} 3. Bg5 {[%clk 0:02:01.6]} 3... Nf6 {[%clk 0:02:47.6]}
4. e3 {[%clk 0:02:01.3]} 4... Be7 {[%clk 0:02:46.3]} 5. Nbd2 {[%clk 0:02:01.5]}
5... O-O {[%clk 0:02:45.3]} 6. Bd3 {[%clk 0:01:59.6]} 6... c5 {[%clk 0:02:44.7]}
7. c3 {[%clk 0:01:53.1]} 7... b6 {[%clk 0:02:41.8]} 8. O-O {[%clk 0:01:41.7]}
8... Ba6 {[%clk 0:02:40.2]} 9. Bxa6 {[%clk 0:01:34.8]} 9... Nxa6 {[%clk
0:02:39.9]} 10. Ne5 {[%clk 0:01:26.9]} 10... Qe8 {[%clk 0:02:26.2]} 11. f4
{[%clk 0:01:12.7]} 11... Nb8 {[%clk 0:02:20.8]} 12. Ndf3 {[%clk 0:01:03.6]}
12... Nfd7 {[%clk 0:02:20.3]} 13. Bxe7 {[%clk 0:01:02.3]} 13... Qxe7 {[%clk
0:02:20]} 14. Qc2 {[%clk 0:01:00.8]} 14... Nf6 {[%clk 0:02:16.9]} 15. Rae1
{[%clk 0:00:50.2]} 15... Ne4 {[%clk 0:02:16.4]} 16. Nd2 {[%clk 0:00:48.7]} 16...
Nd6 {[%clk 0:02:13.9]} 17. e4 {[%clk 0:00:42.4]} 17... cxd4 {[%clk 0:02:02.2]}
18. cxd4 {[%clk 0:00:33.9]} 18... dxe4 {[%clk 0:01:56.7]} 19. Nxe4 {[%clk
0:00:19.1]} 19... Nf5 {[%clk 0:01:53.3]} 20. Qc3 {[%clk 0:00:16]} 20... Nd7
{[%clk 0:01:45.3]} 21. Nc6 {[%clk 0:00:15.8]} 21... Qe8 {[%clk 0:01:40.9]} 22.
d5 {[%clk 0:00:16.6]} 22... exd5 {[%clk 0:01:35]} 23. Nf6+ {[%clk 0:00:15.8]}
23... Nxf6 {[%clk 0:01:35.3]} 24. Rxe8 {[%clk 0:00:16.7]} 24... Rfxe8 {[%clk
0:01:34.8]} 25. Ne5 {[%clk 0:00:15.9]} 25... Rac8 {[%clk 0:01:29.8]} 26. Qd2
{[%clk 0:00:14.7]} 26... d4 {[%clk 0:01:28.5]} 27. g4 {[%clk 0:00:13.8]} 27...
Ne3 {[%clk 0:01:28.2]} 28. Re1 {[%clk 0:00:13.4]} 28... Red8 {[%clk 0:01:22.1]}
29. g5 {[%clk 0:00:12.6]} 29... Nh5 {[%clk 0:01:19.3]} 30. Nd3 {[%clk
0:00:12.3]} 30... Rc2 {[%clk 0:01:15.1]} 31. Qb4 {[%clk 0:00:12.1]} 31... Nf5
{[%clk 0:01:08.2]} 32. Re5 {[%clk 0:00:10.6]} 32... g6 {[%clk 0:01:06.6]} 33.
Qb3 {[%clk 0:00:09.4]} 33... Rdc8 {[%clk 0:01:02]} 34. Rd5 {[%clk 0:00:06.7]}
34... Nhg7 {[%clk 0:01:01.2]} 35. Rd7 {[%clk 0:00:06.9]} 35... Ne6 {[%clk
0:01:00.5]} 36. Ne5 {[%clk 0:00:07.3]} 36... Rc1+ {[%clk 0:00:57.8]} 37. Kf2
{[%clk 0:00:07.5]} 37... R8c2+ {[%clk 0:00:56.4]} 38. Kf3 {[%clk 0:00:07.9]}
38... Rf1+ {[%clk 0:00:53.9]} 39. Ke4 {[%clk 0:00:08.3]} 39... Rxf4+ {[%clk
0:00:49]} 40. Kd3 {[%clk 0:00:08.4]} 40... Rcf2 {[%clk 0:00:37.7]} 41. Qd5
{[%clk 0:00:05.6]} 41... Nc5+ {[%clk 0:00:30.3]} 42. Kc4 {[%clk 0:00:03.9]}
42... Ne3+ {[%clk 0:00:29.8]} 43. Kb5 {[%clk 0:00:03.1]} 43... Nxd5 {[%clk
0:00:29.6]} 44. Rxd5 {[%clk 0:00:04]} 44... Rxb2+ {[%clk 0:00:27.6]} 45. Kc6
{[%clk 0:00:03.8]} 45... Ne6 {[%clk 0:00:20.6]} 46. Nd3 {[%clk 0:00:03.2]} 46...
Rc2+ {[%clk 0:00:20.1]} 47. Kd7 {[%clk 0:00:03.2]} 47... Rf3 {[%clk 0:00:19.2]}
48. Ne5 {[%clk 0:00:03.3]} 48... Rff2 {[%clk 0:00:18.4]} 49. Ke7 {[%clk
0:00:03.9]} 49... Rc7+ {[%clk 0:00:17.9]} 50. Ke8 {[%clk 0:00:03.5]} 50... Rc8+
{[%clk 0:00:16.9]} 51. Ke7 {[%clk 0:00:03.8]} 51... Rfc2 {[%clk 0:00:15.9]} 52.
Nd7 {[%clk 0:00:04.1]} 52... R2c7 {[%clk 0:00:14.6]} 53. Kd6 {[%clk 0:00:04.2]}
53... Rc6+ {[%clk 0:00:14.1]} 54. Ke5 {[%clk 0:00:04.3]} 54... Kg7 {[%clk
0:00:13.7]} 55. Nf6 {[%clk 0:00:04.6]} 55... Rc5 {[%clk 0:00:14.1]} 56. Rxc5
{[%clk 0:00:04.5]} 0-1

[Event "Early-Titled-Tuesday-Blitz-April-23-2024"]
[Site "Chess.com"]
[Date "2024.04.23"]
[Round "11"]
[White "biveklama"]
[Black "alpope"]
[Result "1-0"]
[WhiteElo "2621"]
[BlackElo "2515"]
[TimeControl "180+1"]
[EndTime "10:12:17 PDT"]
[Termination "biveklama won by resignation"]

1. e4 {[%clk 0:03:00.9]} 1... d6 {[%clk 0:02:59.2]} 2. d4 {[%clk 0:02:59.2]}
2... Nf6 {[%clk 0:02:57.2]} 3. Nc3 {[%clk 0:02:59]} 3... e5 {[%clk 0:02:57.2]}
4. dxe5 {[%clk 0:02:59]} 4... dxe5 {[%clk 0:02:58.1]} 5. Qxd8+ {[%clk
0:02:59.3]} 5... Kxd8 {[%clk 0:02:59]} 6. Bc4 {[%clk 0:02:58.4]} 6... Be6 {[%clk
0:02:59.6]} 7. Bxe6 {[%clk 0:02:58.7]} 7... fxe6 {[%clk 0:03:00.5]} 8. Nge2
{[%clk 0:02:57.8]} 8... Bd6 {[%clk 0:02:59.1]} 9. Bg5 {[%clk 0:02:57.2]} 9...
Ke7 {[%clk 0:02:55.1]} 10. f3 {[%clk 0:02:57.3]} 10... a6 {[%clk 0:02:54.3]} 11.
O-O-O {[%clk 0:02:55.7]} 11... Nc6 {[%clk 0:02:52.7]} 12. a3 {[%clk 0:02:52]}
12... b5 {[%clk 0:02:50.9]} 13. Be3 {[%clk 0:02:50.4]} 13... Rhb8 {[%clk
0:02:49.8]} 14. Kd2 {[%clk 0:02:44.2]} 14... a5 {[%clk 0:02:47.9]} 15. a4 {[%clk
0:02:38.8]} 15... bxa4 {[%clk 0:02:10.9]} 16. Nxa4 {[%clk 0:02:38.6]} 16... Nd7
{[%clk 0:02:11.5]} 17. b3 {[%clk 0:02:33]} 17... Nb6 {[%clk 0:02:07.3]} 18. Ra1
{[%clk 0:02:30.8]} 18... Bb4+ {[%clk 0:02:00.9]} 19. c3 {[%clk 0:02:28.3]} 19...
Bd6 {[%clk 0:02:00.9]} 20. Kc2 {[%clk 0:02:28.2]} 20... Nd7 {[%clk 0:01:54]} 21.
Rhd1 {[%clk 0:02:26.8]} 21... Rb7 {[%clk 0:01:51.9]} 22. Rdb1 {[%clk 0:02:22]}
22... Rab8 {[%clk 0:01:49.8]} 23. Nc1 {[%clk 0:02:22.1]} 23... h6 {[%clk
0:01:43]} 24. Nd3 {[%clk 0:02:16.7]} 24... Kf7 {[%clk 0:01:37.3]} 25. Ndc5
{[%clk 0:02:11.3]} 25... Nxc5 {[%clk 0:01:36.5]} 26. Bxc5 {[%clk 0:02:08]} 26...
Rb5 {[%clk 0:01:33.6]} 27. Be3 {[%clk 0:02:06.1]} 27... Be7 {[%clk 0:01:27.3]}
28. Rb2 {[%clk 0:02:01.3]} 28... Bd6 {[%clk 0:01:11.9]} 29. Rd1 {[%clk
0:02:00.4]} 29... Kg6 {[%clk 0:01:08]} 30. h3 {[%clk 0:01:58.1]} 30... Kf7
{[%clk 0:01:08.2]} 31. Rbb1 {[%clk 0:01:51.5]} 31... Ke8 {[%clk 0:01:07.8]} 32.
h4 {[%clk 0:01:48.3]} 32... Kf7 {[%clk 0:01:07.4]} 33. h5 {[%clk 0:01:48.8]}
33... Ke8 {[%clk 0:01:07.3]} 34. c4 {[%clk 0:01:24.9]} 34... R5b7 {[%clk
0:00:57.1]} 35. Nc5 {[%clk 0:01:25.2]} 35... Bxc5 {[%clk 0:00:51.9]} 36. Bxc5
{[%clk 0:01:26.1]} 36... Rd8 {[%clk 0:00:49.3]} 37. Rxd8+ {[%clk 0:01:24.9]}
37... Nxd8 {[%clk 0:00:48.9]} 38. b4 {[%clk 0:01:08.6]} 38... axb4 {[%clk
0:00:47.3]} 39. Rxb4 {[%clk 0:01:09.5]} 39... Rxb4 {[%clk 0:00:45.4]} 40. Bxb4
{[%clk 0:01:10.4]} 40... Nc6 {[%clk 0:00:44.7]} 41. Bc3 {[%clk 0:01:10]} 41...
Kf7 {[%clk 0:00:44.4]} 42. Kd3 {[%clk 0:01:09]} 42... Kf6 {[%clk 0:00:41.8]} 43.
Bd2 {[%clk 0:01:07.5]} 43... Nd8 {[%clk 0:00:28.5]} 44. c5 {[%clk 0:01:06.6]}
44... Ke7 {[%clk 0:00:18.3]} 45. f4 {[%clk 0:01:01.1]} 45... exf4 {[%clk
0:00:15.6]} 46. Bxf4 {[%clk 0:01:02]} 46... c6 {[%clk 0:00:15.9]} 47. Be5 {[%clk
0:01:01.3]} 47... Kf7 {[%clk 0:00:16.1]} 48. Kc4 {[%clk 0:00:59.9]} 48... g6
{[%clk 0:00:15.2]} 49. g4 {[%clk 0:00:58.2]} 49... gxh5 {[%clk 0:00:13.7]} 50.
gxh5 {[%clk 0:00:59.1]} 50... Ke8 {[%clk 0:00:13.4]} 51. Bf4 {[%clk 0:00:59.3]}
51... Nf7 {[%clk 0:00:13.4]} 52. Kb4 {[%clk 0:00:59.9]} 52... Ng5 {[%clk
0:00:12.5]} 53. e5 {[%clk 0:00:49.9]} 53... Nf3 {[%clk 0:00:12.5]} 54. Ka5
{[%clk 0:00:41.2]} 54... Kd7 {[%clk 0:00:12.6]} 55. Bxh6 {[%clk 0:00:38.9]}
55... Nxe5 {[%clk 0:00:12.2]} 56. Bg7 {[%clk 0:00:39.8]} 56... Nf7 {[%clk
0:00:05.5]} 57. h6 {[%clk 0:00:40.7]} 57... e5 {[%clk 0:00:06.1]} 58. h7 {[%clk
0:00:37.7]} 58... e4 {[%clk 0:00:05.9]} 59. h8=N {[%clk 0:00:37]} 59... Nxh8
{[%clk 0:00:06.4]} 60. Bxh8 {[%clk 0:00:37.5]} 60... Ke6 {[%clk 0:00:07]} 61.
Kb6 {[%clk 0:00:35.4]} 61... Kd5 {[%clk 0:00:07.2]} 62. Bc3 {[%clk 0:00:36.1]}
62... Kc4 {[%clk 0:00:06.7]} 63. Bd2 {[%clk 0:00:35.8]} 63... Kd5 {[%clk
0:00:07.3]} 64. Be3 {[%clk 0:00:36.1]} 64... Kc4 {[%clk 0:00:06.4]} 65. Kxc6
{[%clk 0:00:36.8]} 65... Kd3 {[%clk 0:00:07.3]} 66. Bg1 {[%clk 0:00:37.3]} 66...
Ke2 {[%clk 0:00:07]} 67. Kd5 {[%clk 0:00:37.2]} 67... e3 {[%clk 0:00:06.7]} 68.
Bxe3 {[%clk 0:00:37.6]} 68... Kxe3 {[%clk 0:00:07.6]} 69. c6 {[%clk 0:00:38.5]}
1-0

[Event "Early-Titled-Tuesday-Blitz-April-23-2024"]
[Site "Chess.com"]
[Date "2024.04.23"]
[Round "11"]
[White "DenLaz"]
[Black "Baku_Boulevard"]
[Result "1/2-1/2"]
[WhiteElo "3110"]
[BlackElo "3043"]
[TimeControl "180+1"]
[EndTime "10:12:19 PDT"]
[Termination "Game drawn by repetition"]

1. d4 {[%clk 0:03:00.9]} 1... d5 {[%clk 0:03:00.1]} 2. c4 {[%clk 0:03:01]} 2...
e6 {[%clk 0:03:00.6]} 3. Nf3 {[%clk 0:03:00.5]} 3... c5 {[%clk 0:03:01]} 4. cxd5
{[%clk 0:02:59.2]} 4... exd5 {[%clk 0:03:01.9]} 5. g3 {[%clk 0:02:59.3]} 5...
Nc6 {[%clk 0:03:01.8]} 6. Bg2 {[%clk 0:02:59.8]} 6... Nf6 {[%clk 0:03:02.4]} 7.
O-O {[%clk 0:03:00.4]} 7... Be7 {[%clk 0:03:02.8]} 8. dxc5 {[%clk 0:03:00.8]}
8... Bxc5 {[%clk 0:03:03.1]} 9. a3 {[%clk 0:03:00.5]} 9... Ne4 {[%clk 0:03:03]}
10. b4 {[%clk 0:02:56.6]} 10... Be7 {[%clk 0:03:03]} 11. Bb2 {[%clk 0:02:54.3]}
11... Bf6 {[%clk 0:03:03]} 12. Qb3 {[%clk 0:02:43.2]} 12... Be6 {[%clk
0:03:01.6]} 13. Nbd2 {[%clk 0:02:38]} 13... O-O {[%clk 0:03:01.3]} 14. Rad1
{[%clk 0:02:23.6]} 14... Qe7 {[%clk 0:02:58.7]} 15. Qc2 {[%clk 0:02:09.3]} 15...
Bf5 {[%clk 0:02:48.3]} 16. Bxf6 {[%clk 0:01:50.6]} 16... Qxf6 {[%clk 0:02:48.2]}
17. Nxe4 {[%clk 0:01:50]} 17... Bxe4 {[%clk 0:02:48.5]} 18. Qd2 {[%clk
0:01:49.3]} 18... Rfe8 {[%clk 0:02:37.6]} 19. b5 {[%clk 0:01:32.6]} 19... Ne5
{[%clk 0:02:28.6]} 20. Nxe5 {[%clk 0:01:31.9]} 20... Qxe5 {[%clk 0:02:24.6]} 21.
e3 {[%clk 0:01:31.4]} 21... Rac8 {[%clk 0:02:11.4]} 22. Qd4 {[%clk 0:01:28.8]}
22... b6 {[%clk 0:01:58.2]} 23. Qxe5 {[%clk 0:01:19.6]} 23... Rxe5 {[%clk
0:01:59.1]} 24. Rd4 {[%clk 0:01:00.5]} 24... Rc5 {[%clk 0:01:51.5]} 25. a4
{[%clk 0:00:40.9]} 25... g5 {[%clk 0:01:47.3]} 26. Rfd1 {[%clk 0:00:36.9]} 26...
Bc2 {[%clk 0:00:35.8]} 27. R1d2 {[%clk 0:00:28.9]} 27... Bb3 {[%clk 0:00:36]}
28. h4 {[%clk 0:00:28.3]} 28... h6 {[%clk 0:00:35.9]} 29. hxg5 {[%clk
0:00:16.7]} 29... hxg5 {[%clk 0:00:35.9]} 30. Bf3 {[%clk 0:00:12.4]} 30... Kg7
{[%clk 0:00:33.4]} 31. Kg2 {[%clk 0:00:12.3]} 31... Kf6 {[%clk 0:00:31.6]} 32.
Bd1 {[%clk 0:00:12.8]} 32... Bc4 {[%clk 0:00:29.7]} 33. Bf3 {[%clk 0:00:12.5]}
33... Ke6 {[%clk 0:00:29.3]} 34. g4 {[%clk 0:00:08.1]} 34... Bb3 {[%clk
0:00:25.7]} 35. Bd1 {[%clk 0:00:07.1]} 35... Bc4 {[%clk 0:00:22.4]} 36. Bc2
{[%clk 0:00:06]} 36... Ke7 {[%clk 0:00:20.6]} 37. Bf5 {[%clk 0:00:06.5]} 37...
Bb3 {[%clk 0:00:20.4]} 38. Kg3 {[%clk 0:00:04.5]} 38... f6 {[%clk 0:00:18.7]}
39. Kg2 {[%clk 0:00:03.7]} 39... Rc4 {[%clk 0:00:17.2]} 40. Kg3 {[%clk
0:00:04.1]} 40... Rxa4 {[%clk 0:00:15.3]} 41. Rxa4 {[%clk 0:00:03.7]} 41... Bxa4
{[%clk 0:00:16]} 42. Ra2 {[%clk 0:00:04.5]} 42... Bxb5 {[%clk 0:00:16.4]} 43.
Rxa7+ {[%clk 0:00:05.2]} 43... Kd6 {[%clk 0:00:10.6]} 44. Rf7 {[%clk 0:00:05.4]}
44... Bc6 {[%clk 0:00:08.2]} 45. Rxf6+ {[%clk 0:00:05.8]} 45... Kc5 {[%clk
0:00:08.8]} 46. Rf8 {[%clk 0:00:03.8]} 46... b5 {[%clk 0:00:09.2]} 47. Rc8
{[%clk 0:00:04.6]} 47... Kd6 {[%clk 0:00:06.9]} 48. Rb8 {[%clk 0:00:04.5]} 48...
Kc7 {[%clk 0:00:06.9]} 49. Rh8 {[%clk 0:00:04.8]} 49... b4 {[%clk 0:00:07.5]}
50. Rh1 {[%clk 0:00:05.4]} 50... Kb6 {[%clk 0:00:07.9]} 51. Rb1 {[%clk
0:00:05.7]} 51... Kc5 {[%clk 0:00:08]} 52. Rc1+ {[%clk 0:00:06]} 52... Kd6
{[%clk 0:00:08.5]} 53. Rb1 {[%clk 0:00:05.6]} 53... Kc5 {[%clk 0:00:09]} 54.
Rc1+ {[%clk 0:00:05.6]} 54... Kb6 {[%clk 0:00:09.3]} 55. Rb1 {[%clk 0:00:05.4]}
55... Kb5 {[%clk 0:00:09.9]} 56. Bd3+ {[%clk 0:00:04]} 56... Kc5 {[%clk
0:00:09.2]} 57. Rc1+ {[%clk 0:00:04.1]} 57... Kd6 {[%clk 0:00:09.7]} 58. Rb1
{[%clk 0:00:04.3]} 58... Kc5 {[%clk 0:00:10.1]} 59. Rc1+ {[%clk 0:00:04.7]}
59... Kb6 {[%clk 0:00:10.1]} 60. Rb1 {[%clk 0:00:04.7]} 60... Kc5 {[%clk
0:00:09.7]} 1/2-1/2